Cogmind - Beta 14 @@@ ROGUE MODE // 2024.08.17 @ 15:02:17 Player: Minty Result: Destroyed by Y-45 Defender with Heavy Assault Rifle Performance ------------- Evolutions (1) 500 Regions Visited (3) 600 Robots Destroyed (67) 335 Value Destroyed (1774) 1774 Prototype IDs (7) 140 Alien Tech Used (0) 0 Bonus (141) 141 TOTAL SCORE: 3490 Bonus ------- High Alert Combat Kills 141 Cogmind --------- Core Integrity 0/400 Matter 300/300 Energy 265/265 System Corruption 1% Temperature Warning (306) Movement Flying (34) Location -9/Storage Parts ------- > --- POWER (1) -------- Improved Ion Engine > --- PROPULSION (3) --- Improved Flight Unit Improved Flight Unit Improved Flight Unit > --- UTILITY (3) ------ Small Storage Unit Hacking Suite Hacking Suite > --- WEAPON (2) ------- Improved Medium Laser > --- INVENTORY (8) ---- Cooled Ion Engine Improved Flight Unit Hacking Suite Hacking Suite Hacking Suite Rocket Launcher Rocket Launcher Rocket Launcher Peak State ------------ > --- POWER ------------ Improved Ion Engine > --- PROPULSION ------- Improved Flight Unit Improved Flight Unit Improved Flight Unit > --- UTILITY ---------- Small Storage Unit Hacking Suite Hacking Suite > --- WEAPON ----------- Improved Medium Laser Improved Medium Laser > --- INVENTORY -------- Cooled Ion Engine Improved Flight Unit Hacking Suite Hacking Suite Hacking Suite Rocket Launcher Rocket Launcher Rocket Launcher [Rating: 26] Favorites ----------- Power Light Ion Engine Engine Light Ion Engine Propulsion Flight Unit Leg Aluminum Leg Wheel Wheel Flight Unit Flight Unit Utility Hacking Suite Device Weight Redist. System Storage Small Storage Unit Hackware Hacking Suite Protection Light Armor Plating Weapon EM Shotgun Energy Gun EM Shotgun Ballistic Gun Light Assault Rifle Launcher Rocket Launcher Build | -11 -10 -9 -9 ------- Run | Yrd Mat Mat Sto Slots Evolved 2 | . . 2 . Power . | . . . . Propulsion 1 | . . 1 . Utility 1 | . . 1 . Weapon . | . . . . Parts Attached 66 | . 24 28 14 Power 12 | . 5 4 3 Engine 12 | . 5 4 3 Core . | . . . . Reactor . | . . . . Propulsion 21 | . 9 8 4 Treads . | . . . . Leg 5 | . 2 3 . Wheel 4 | . 4 . . Hover . | . . . . Flight 12 | . 3 5 4 Utility 7 | . 4 3 . Device 1 | . 1 . . Storage . | . . . . Processor . | . . . . Hackware 3 | . . 3 . Protection 3 | . 3 . . Artifact . | . . . . Weapon 26 | . 6 13 7 Energy Gun 12 | . 4 5 3 Energy Cannon . | . . . . Ballistic Gun 9 | . 1 6 2 Ballistic Cannon . | . . . . Launcher 5 | . 1 2 2 Special Weapon . | . . . . Impact Weapon . | . . . . Slashing Weapon . | . . . . Piercing Weapon . | . . . . Special Melee Weapon . | . . . . Unidentified Prototypes 3 | . . 3 . Corrupted Parts 1 | . . 1 . System Corruption 1 | . . 1 . Parts Lost 9 | . . 6 3 Power 1 | . . 1 . Propulsion 6 | . . 4 2 Utility . | . . . . Weapon 2 | . . 1 1 Highest Loss Streak 4 | . . 4 1 To Critical Strikes . | . . . . Average Slot Usage (%) 94 | . 97 93 84 Engine 10 | . 14 8 4 Leg 3 | . 1 5 10 Wheel 6 | . 13 . . Flight 18 | . 12 26 16 Device 3 | . 6 . . Storage 12 | . 14 11 11 Hackware 11 | . . 21 22 Protection 2 | . 5 . . Energy Gun 16 | . 21 10 16 Ballistic Gun 7 | . 6 10 3 Peak Build Rating 26 | 6 11 18 26 Average Rating 13 | 6 9 14 19 On Entrance 9 | 6 6 11 16 Naked Turns . | . . . . Heaviest Build 20 | 13 20 14 19 Greatest Support 30 | 20 26 30 30 Greatest Overweight (x) 4 | . 4 1 2 Average Overweight (x) . | . . . . Largest Inventory Capacity 8 | 8 8 8 8 Average Capacity 8 | 8 8 8 8 Most Carried 8 | 6 8 8 8 Average Carried 7 | 6 7 7 7 Final Capacity 8 | 8 8 8 8 Final Carried 8 | 6 8 8 8 Class Distribution -------------------- 48% | Mutant 32% | Scavenger-Mutant 18% | Hacker-Mutant Dominant Class ---------------- Mutant | -10/Materials Scavenger-Mutant | -9/Materials Hacker-Mutant | -9/Storage Resources | -11 -10 -9 -9 ----------- Run | Yrd Mat Mat Sto Matter Collected 1224 | 200 373 420 231 Remotely . | . . . . Salvage Created 2160 | . 447 1129 584 Parts 145 | . 25 78 42 Haulers Intercepted 3 | . 1 2 . Recyclers Shooed 1 | . . . 1 Parts Field Recycled . | . . . . Retrieved Matter . | . . . . Parts Self-Destructed . | . . . . Prevented . | . . . . Kills | -11 -10 -9 -9 ------- Run | Yrd Mat Mat Sto Combat Hostiles Destroyed 54 | . 10 28 16 Guns 41 | . 9 21 11 AOE 13 | . 1 7 5 Classes Destroyed 9 | . 7 1 1 Worker 3 | . 2 . 1 Builder 1 | . 1 . . Hauler 3 | . 1 2 . Recycler 1 | . . . 1 Operator 3 | . 1 2 . Watcher 2 | . 1 . 1 Swarmer 16 | . 3 9 4 Grunt 28 | . 7 12 9 Sentry 10 | . . 7 3 Best Kill Streak 10 | . 4 7 10 Combat Bots Only 8 | . 3 7 8 Max Kills in Single Turn 3 | . 2 3 2 Gunslinging 1 | . 1 . . Exploded 3 | . 1 3 2 Melee . | . . . . Uniques/NPCs Destroyed . | . . . . Combat | -11 -10 -9 -9 -------- Run | Yrd Mat Mat Sto Hostile Shots Fired 241 | . 57 115 69 Missed 87 | . 16 47 24 Damage Taken 1881 | . 526 787 568 Core 454 | . 48 199 207 Absorbed by Shields . | . . . . Regen/Repaired (Parts) 109 | . 74 35 . Core Remaining (%) 90 | 100 80 . . Volleys Fired 175 | . 47 88 40 Largest 2 | . 2 2 2 Hottest 112 | . 90 68 112 Shots Fired 305 | . 92 149 64 Gun 290 | . 91 142 57 Cannon . | . . . . Launcher 15 | . 1 7 7 Special . | . . . . Kinetic 121 | . 40 73 8 Thermal 58 | . 13 . 45 Explosive 15 | . 1 7 7 Electromagnetic 111 | . 38 69 4 Robot Hit Streak 13 | . 10 13 9 Robot Miss Streak 5 | . 5 5 3 Penetration Max . | . . . . Secondary Targets 7 | . 1 1 5 Max Gunslinging Chain 1 | . 1 1 1 Shots Hit Robots 197 | . 55 101 41 Core Hits 115 | . 28 59 28 Critical Kills 2 | . 1 . 1 Critical Parts Destroyed 1 | . 1 . . Critical Strikes 4 | . 2 . 2 Burn 1 | . . . 1 Destroy 3 | . 2 . 1 Melee Attacks . | . . . . Impact . | . . . . Slashing . | . . . . Piercing . | . . . . Sneak Attacks . | . . . . Combat Hostiles . | . . . . Follow-up Attacks . | . . . . Damage Inflicted 3831 | . 890 1744 1197 Guns 2669 | . 731 1260 678 Cannons . | . . . . Explosions 1160 | . 157 484 519 Melee . | . . . . Ramming 2 | . 2 . . Kinetic 689 | . 251 363 75 Thermal 894 | . 277 69 548 Explosive 934 | . . 415 519 Electromagnetic 1312 | . 360 897 55 Impact . | . . . . Slashing . | . . . . Piercing . | . . . . Highest Corruption 1 | . 1 1 1 Average Corruption 1 | . 1 1 1 Corruption Purged . | . . . . Corruption Blocked . | . . . . Effects 10 | . 7 3 . Message Errors 4 | . 4 . . Matter Fused 2 | . 2 . . Heat Flow Errors 1 | . . 1 . Parts Rejected 1 | . . 1 . Parts Fused 1 | . . 1 . Data Loss (minor) 1 | . 1 . . Overload Shots . | . . . . Overflow Damage 33 | . 23 10 . Projectiles . | . . . . Explosions 33 | . 23 10 . Melee . | . . . . Knockbacks . | . . . . Impact . | . . . . Kinetic . | . . . . Secondary . | . . . . Self-Inflicted Damage 69 | . 55 . 14 Shots 2 | . 1 . 1 Rammed 1 | . 1 . . Targets Rammed 1 | . 1 . . Kicked . | . . . . Crushed . | . . . . Highest Temperature 400 | . 400 272 288 Average Temperature 70 | . 91 34 107 Received Heat Transfer 822 | . 237 339 246 Effects 2 | . 2 . . Energy Bleed 2 | . 2 . . Siege Activations . | . . . . Robots Corrupted 1 | . 1 . . Combat Hostiles . | . . . . Parts Fried 6 | . 3 3 . Impact Corruptions . | . . . . Robots Melted . | . . . . Combat Hostiles . | . . . . Parts Melted 2 | . 1 . 1 Heat Transferred 1654 | . 346 50 1258 Parts Sabotaged . | . . . . Parts Stolen . | . . . . Parts Stripped . | . . . . Power Chain Reactions 3 | . 1 2 . Alert | -11 -10 -9 -9 ------- Run | Yrd Mat Mat Sto Peak Influence 722 | . 271 603 722 Initial 191 | . . 27 191 Average 237 | . 124 307 473 Maximum Alert Level 3 | . 1 2 3 Low Security (%) 43 | 100 69 21 9 Level 1 40 | . 30 54 36 Level 2 15 | . . 23 50 Level 3 . | . . . 3 Level 4 . | . . . . Level 5 . | . . . . High Security . | . . . . Max Security . | . . . . Squads Dispatched 6 | . 2 4 . Investigation 4 | . 1 3 . Extermination . | . . . . Reinforcement 2 | . 1 1 . Assault . | . . . . Garrison . | . . . . Intercept . | . . . . Searches Triggered . | . . . . Construction Impeded . | . . . . Haulers Reinforced . | . . . . Active Scanning Responses . | . . . . Cargo Convoy Interrupts . | . . . . Stealth | -11 -10 -9 -9 --------- Run | Yrd Mat Mat Sto Distress Signals 5 | . 2 1 2 Communications Jammed . | . . . . Distress Signals . | . . . . Times Spotted 76 | . 17 40 19 Peak Tracking Total 7 | . 3 6 7 Tactical Retreats 7 | . 2 2 3 Traps | -11 -10 -9 -9 ------- Run | Yrd Mat Mat Sto Traps Triggered 2 | . 1 1 . Indirectly . | . . . . Trap Hack Attempts . | . . . . Triggered . | . . . . Disarmed 1 | . 1 . . Reprogrammed 6 | . . 6 . Reused . | . . . . Traps Extracted . | . . . . Installed . | . . . . Triggered . | . . . . Machines | -11 -10 -9 -9 ---------- Run | Yrd Mat Mat Sto Machines Disabled 6 | . 1 3 2 Max in Single Turn 2 | . 1 2 1 Machines Repaired . | . . . . Machines Dismantled . | . . . . Machines Sabotaged . | . . . . Overloaded Fab Kills . | . . . . Hacking | -11 -10 -9 -9 --------- Run | Yrd Mat Mat Sto Machines Accessed 22 | . 8 13 1 Terminals 19 | . 7 11 1 Fabricators . | . . . . Repair Stations 3 | . 1 2 . Recycling Units . | . . . . Scanalyzers . | . . . . Garrison Access . | . . . . Total Hacks 95 | . 38 55 2 Successful 68 | . 26 40 2 Failed 27 | . 12 15 . Catastrophic 2 | . 2 . . Database Lockouts . | . . . . Manual 56 | . 12 43 1 Terminals 89 | . 35 52 2 Fabricators . | . . . . Repair Stations 6 | . 3 3 . Recycling Units . | . . . . Scanalyzers . | . . . . Garrison Access . | . . . . Terminal Hacks 37 | . 15 21 1 Robot Analysis 4 | . 1 2 1 Prototype ID Bank 5 | . 3 2 . Level Access Points 1 | . 1 . . Branch Access Points 1 | . 1 . . Terminal Index 3 | . 2 1 . Recycling Unit Index 1 | . 1 . . Alert Level 6 | . 1 5 . Unreport Threat 3 | . . 3 . Locate Traps 3 | . 2 1 . Disarm Traps 1 | . 1 . . Reprogram Traps 1 | . . 1 . Dispatch Records 1 | . . 1 . Transport Status 1 | . 1 . . Recall Investigation 1 | . . 1 . Recall Reinforcements 1 | . . 1 . Hauler Manifests 1 | . . 1 . Registered Prototypes 1 | . 1 . . Zone Layout 2 | . . 2 . Fabricator Hacks . | . . . . Repair Station Hacks 4 | . 2 2 . Scan Component 2 | . 1 1 . Repair 2 | . 1 1 . Recycling Unit Hacks . | . . . . Scanalyzer . | . . . . Garrison Access Hacks . | . . . . Unauthorized Hacks 27 | . 9 17 1 Terminals 25 | . 8 16 1 Assimilate 2 | . . 2 . Botnet 6 | . 2 4 . Operators 1 | . 1 . . Skim 16 | . 5 10 1 Fabricators . | . . . . Repair Stations 2 | . 1 1 . Patch 2 | . 1 1 . Recycling Units . | . . . . Scanalyzers . | . . . . Garrison Access . | . . . . Data Cores Recovered 1 | . . 1 . Used 1 | . . 1 . Hacking Detections 20 | . 8 11 1 Full Trace Events 1 | . . 1 . Feedback Events . | . . . . Feedback Blocked . | . . . . Robot Schematics Acquired . | . . . . Robots Built . | . . . . Authchips . | . . . . Time . | . . . . Total Robot Build Rating . | . . . . Part Schematics Acquired . | . . . . Parts Built . | . . . . Authchips . | . . . . Time . | . . . . Total Part Build Rating . | . . . . Parts Repaired 2 | . 1 1 . Time 52 | . 26 26 . Parts Recycled . | . . . . Recycled Matter . | . . . . Retrieved Matter . | . . . . Retrieved Components . | . . . . Parts Scanalyzed . | . . . . Part Schematics Acquired . | . . . . Parts Damaged . | . . . . Bothacking | -11 -10 -9 -9 ------------ Run | Yrd Mat Mat Sto Used RIF Installer . | . . . . Robots Hacked . | . . . . Non-combat . | . . . . Combat . | . . . . Robot Hacks Applied . | . . . . Relay Couplers Released . | . . . . Fabnet Peak Effective % . | . . . . Robots Rewired . | . . . . Allies Hacked . | . . . . Hacks Repelled . | . . . . Allies | -11 -10 -9 -9 -------- Run | Yrd Mat Mat Sto Total Allies 1 | . . 1 . Largest Group 1 | . . 1 1 Highest-Rated Group 10 | . . 10 10 Highest-Rated Ally 10 | . . 10 10 Total Orders . | . . . . Ally Attacks . | . . . . Total Damage . | . . . . Kills . | . . . . Allies Corrupted . | . . . . Allies Melted . | . . . . Intel | -11 -10 -9 -9 ------- Run | Yrd Mat Mat Sto Robot Analysis Total 4 | . 1 2 1 Derelict Logs Recovered . | . . . . Drone Launches . | . . . . Drone Recoveries . | . . . . Exploration | -11 -10 -9 -9 ------------- Run | Yrd Mat Mat Sto Turns Passed 2036 | 10 996 772 258 Spaces Moved 1625 | 9 719 718 179 Core 3 | . . 3 . Treads . | . . . . Legs 166 | 9 25 91 41 Wheels 372 | . 372 . . Hover . | . . . . Flight 1084 | . 322 624 138 Fastest Speed 34 | 120 37 34 34 Average Speed 56 | 120 63 45 71 Slowest Speed 360 | 120 360 120 180 Overloaded Moves . | . . . . Propulsion Burnouts . | . . . . Robots Hopped 12 | . 4 7 1 Cave-ins Triggered . | . . . . Exploration Rate (%) 47 | 2 83 74 32 Regions Visited 3 Branch Regions 1 Pre-discovered Areas 4 | . 2 2 . Known Exits Taken 2 | . 1 1 . Unknown Exits Taken 1 | 1 . . . Scrap Searched . | . . . . Spaces Dug 9 | . 9 . . Terrain Destroyed 115 | . 15 41 59 Melee . | . . . . Projectile . | . . . . AOE 115 | . 15 41 59 Terrain Rammed . | . . . . Walls Destroyed . | . . . . Machines Disabled . | . . . . Actions | -11 -10 -9 -9 --------- Run | Yrd Mat Mat Sto Total 2434 | 8 1167 1016 243 Wait 516 | . 343 170 3 Move 1598 | 8 710 703 177 Hop 12 | . 4 7 1 Pick Up 21 | . 14 5 2 Fast Attach 22 | . 7 11 4 Attach 10 | . 3 4 3 Detach 6 | . . 4 2 Swap 34 | . 14 13 7 Drop 39 | . 24 11 4 Fire 175 | . 47 88 40 Melee . | . . . . Ram 1 | . 1 . . Kick . | . . . . Crush . | . . . . Escape Stasis . | . . . . Rewire . | . . . . Trap . | . . . . Miscellaneous . | . . . . Route ------- -11/Scrapyard -10/Materials (discovered 5 exits: *Mat x3 / *Min / Sub) -9/Materials (discovered 7 exits: *Mat x3 / *Min x2 / *Sto x2) -9/Storage (discovered 1 exit: Rec) History --------- Turn | Location | Event 1 | -11/Scrapyard | Discovered new exit (range 3) 11 | -11/Scrapyard | Entered Materials 74 | -10/Materials | Identified exit to Mines 131 | -10/Materials | Identified exit to Materials 228 | -10/Materials | Repaired Lgt. Armor Plating 325 | -10/Materials | Build established: Mutant 730 | -10/Materials | Learned location of 1 exit from Recycling 790 | -10/Materials | Learned location of Subcaves (-10) 818 | -10/Materials | Identified exit to Subcaves 818 | -10/Materials | Learned location of 2 exits from Materials 838 | -10/Materials | Loaded intel: 13 trap records 866 | -10/Materials | Learned location of Storage (-9) 1007 | -10/Materials | Entered another Materials area 1007 | -9/Materials | Evolved 2 slots: Propulsion x1, Utility x1 1008 | -9/Materials | Identified exit to Materials 1008 | -9/Materials | Identified exit to Storage 1009 | -9/Materials | Identified exit to Mines 1156 | -9/Materials | Discovered exit to Mines (range 8) 1243 | -9/Materials | Learned 2 Storage zone layouts 1253 | -9/Materials | Learned Storage security intel 1254 | -9/Materials | Learned Storage emergency access door positions 1262 | -9/Materials | Learned location of Zion (-7) 1430 | -9/Materials | Repaired Flight Unit 1597 | -9/Materials | Discovered exit to Storage (range 11) 1665 | -9/Materials | Destroyed 7 combat bots 1671 | -9/Materials | Lost 4 parts (3n1w) 1739 | -9/Materials | Build established: Scavenger-Mutant 1779 | -9/Materials | Entered Storage 1779 | -9/Storage | Accompanied by 1 ally 1780 | -9/Storage | Identified exit to Recycling 1807 | -9/Storage | Core integrity fell below 50% 1970 | -9/Storage | Destroyed 8 combat bots 2003 | -9/Storage | Core integrity fell below 20% 2037 | -9/Storage | Destroyed by Y-45 Defender with Heavy Assault Rifle Last Messages --------------- 02005_ K-01 Serf collects debris. 02005_ U-05 Engineer builds a Wall. 02005_ K-01 Serf collects debris. 02010_ The unstable cave ceiling collapses. 02010_ U-05 Engineer lays Concrete. 02012_ Destroyed Heat Sink. 02012_ U-05 Engineer builds a Wall. 02012_ K-01 Serf collects debris. 02013_ Imp. Medium Laser destroyed. 02013_ K-01 Serf collects debris. 02017_ U-05 Engineer lays Concrete. 02017_ K-01 Serf collects debris. 02018_ U-05 Engineer lays Concrete. 02018_ K-01 Serf collects debris. 02019_ U-05 Engineer builds a Wall. 02019_ Y-45 Defender destroyed. 02020_ U-05 Engineer builds a Wall. 02021_ K-01 Serf collects debris. 02029_ Connecting with Repair Station... 02037_ Critical hit (Burn: +37). Map ----- +----------------------------------------------------+ | ??????????????????????????????????????????? | | ??????????????????????????????????????????? | | ??????????????????????????????????????????? | | ??????????????????????????????????????????? | | ??????????????????????????????????????????? | | ??????????????????????????????????????????? | | ??????????????????????????????????????????? | | # """ #?# # " "" # + # | | # """ #?# # """" # # # | | ####### # """ ### # # # # | | ??????# + + ########### # # | | ??????# # """ # #?????????# # # | | ####### # """ # ########### ###### | | # # """ + ##???? | | # # ##"T"######### T#???? | | """"" # ###############???????# ##???? | | """"" #####?# #T###??????????# #????? | | """"" #?????# " ############# #????? | | #?????# # ## """ """ ## #????? | | #######?????###### ## """ """ # #????? | | #################+### """ """Y#####+####?? | | # #?# #?? | | !! + a #?# #?? | | %%= # #?# #?? | | ##############+###+# #?# #?? | | #?????????# # @ #?# #?? | | #?????????# """"" ##" "######?# #?? | | ##?????????# """"" ##"R"#??????########?? | | # ##?????#### """"" ##"""#???????????????? | | # #?????#""" ######???????????????? | | ####?????#"R #????????????????????? | | ###???####""" !*! #????????????????????? | | ####### ####? !*! ?#????????????????????? | | ## !%! #???!!!????????????????????????? | | ## ! #??????????????????????????????? | | # #??????????????????????????????? | | # """ """ #??????????????????????????????? | | + """ """ #??????????????????????????????? | | # """ """????????????????????????????????? | | # ????????????????????????????????? | | ## ???????????????????????????????? | | ?####"Y"###???????????????????????????????? | | ?????"""#?????????????????????????????????? | | ??????###?????????????????????????????????? | | ??????????????????????????????????????????? | | ??????????????????????????????????????????? | | ??????????????????????????????????????????? | | ??????????????????????????????????????????? | | ??????????????????????????????????????????? | | ??????????????????????????????????????????? | +----------------------------------------------------+ Best States ------------- Heat Dissipation 28 Energy Generation 14 Energy Capacity 280 Matter Stores 300 Matter Capacity 300 Sight Range 16 Terrain Scan Density 10 Additional Mass Support 6 Armor Coverage 150 Evasion (%) 63 Offensive Hacking 20 Item Schematics ----------------- None Robot Schematics ------------------ None Fabricated ------------ Nothing Alien Tech Used ----------------- None Achievements -------------- None Challenges ------------ None Game ------ Seed SensorStealthFilter Manual? 0 Play Time 00:17:19 Cumulative 869.9 hours Start 2024.08.17 @ 14:47:16 End 2024.08.17 @ 15:02:17 Sessions 1 Manual Loads 0 Difficulty Rogue Special Mode None Game No. 1047 Rogue 768 Adventurer 124 Explorer 155 Win Type - Total 37 Types 28/0/7/1/0/0/0/1/0 Lore% 75 Gallery% 89 Achievement% 78 Wizard Run 0 Options --------- Layout 0 ASCII 0 Keyboard 1 Movement Numpad Keybinds 0 Fullscreen 2 Font 18/Smallcaps Map View 76x50 Zoom Use 0% Tactical HUD 1 Map Filters NONE Filters NONE Steam 1 RUN: d517e530-f2b9-4f3d-948c-50d8c203ca47